bitfinex/quotes_ETHUSD_20240816
["timestamp","ask_amount","ask_price","bid_price","bid_amount"]
[1723829579949,3.84022,2604.1,2603.3,3.84113]
[1723829580257,2.3794,2604.4,2603.9,3.84028]
[1723829580423,2.3794,2605.3,2604.0,0.07679261]
[1723829580751,0.1351597,2606.6,2605.0,3.83876]
[1723829580752,2.3794,2606.2,2605.0,3.83876]
[1723829580933,3.83799,2605.6,2604.9,3.83882]
[1723829581137,3.83799,2605.6,2604.9,3.83886]
[1723829581309,3.83762,2605.8,2604.8,3.83905]
[1723829581310,3.83771,2605.8,2604.8,3.83905]
[1723829581510,3.83842,2605.3,2604.6,3.83928]
[1723829581857,3.83842,2605.3,2604.0,37.3748]
[1723829581858,2.3172,2604.6,2603.6,3.84069]
[1723829582015,3.8399,2604.3,2603.3,3.84116]
[1723829582222,3.84025,2604.0,2603.3,3.84116]
[1723829582592,3.83823,2605.4,2603.3,0.07680528]
[1723829582593,2.3172,2603.9,2603.3,0.07680528]
[1723829582709,2.3172,2604.3,2602.3,6.592]
[1723829582904,2.3172,2604.3,2602.4,0.0768074]
[1723829583156,2.3172,2604.3,2603.9,3.8403]
[1723829583320,4.06983,2605.5,2603.3,3.84121]
[1723829583321,2.3738,2604.8,2604.1,3.83996]
[1723829583539,2.3738,2604.8,2603.0,6.18612]
[1723829583540,2.3738,2604.8,2603.7,3.84067]
[1723829583740,2.3738,2604.8,2603.4,3.84102]
[1723829583741,6.21292,2604.8,2603.4,3.84102]
[1723829583940,0.406983,2605.4,2602.6,2.81681506]
[1723829583941,2.2669,2604.0,2602.6,2.3444]
[1723829584158,2.2669,2604.0,2602.0,3.84315]
[1723829584159,3.84078,2603.7,2602.9,3.84185]
[1723829584332,4.06714,2603.9,2602.1,0.47241506]
[1723829584333,0.22669,2603.9,2602.1,0.47241506]
[1723829584671,3.8408,2603.7,2602.9,3.84185]
[1723829584965,3.84109,2603.5,2602.7,3.84211]
[1723829585178,0.384109,2603.4,2602.5,3.84239]
[1723829585338,3.8414,2603.3,2602.5,3.84239]
[1723829585538,3.8414,2603.3,2602.3,3.84272]
[1723829585539,3.84161,2603.1,2602.3,3.84272]
[1723829585761,6.10833,2603.2,2602.5,3.84245]
[1723829586125,2.2669,2604.2,2602.2,3.84276]
[1723829586467,2.2669,2604.2,2603.6,3.84083]
[1723829586667,3.84045,2603.9,2602.9,3.84173]
[1723829586869,3.8408,2603.7,2602.9,3.84173]
[1723829587031,6.10776,2603.6,2602.9,3.84173]
[1723829587231,6.10776,2603.6,2602.0,3.84318]
[1723829587232,2.2669,2603.6,2602.0,3.84318]
[1723829587551,2.2669,2603.6,2602.6,3.84223]
[1723829587552,3.84123,2603.4,2602.6,3.84223]
[1723829587759,2.2669,2603.6,2602.2,3.84282]
[1723829587760,3.84146,2603.2,2602.2,3.84279]
[1723829587958,3.84189,2602.9,2602.0,3.84315]
[1723829588269,3.84176,2603.0,2602.1,3.84294]
[1723829588565,3.84176,2603.0,2601.5,1.61572497]
[1723829588566,6.16235,2602.3,2601.5,3.8438]
[1723829588764,6.778585,2602.3,2601.5,3.8438]
[1723829589134,3.84307,2602.1,2601.5,3.8438]
[1723829589331,2.935835,2602.3,2601.3,3.84409]
[1723829589532,2.935835,2602.3,2601.4,3.84402]
[1723829589533,2.3196,2602.3,2601.4,3.84402]
[1723829589730,2.3588,2601.7,2601.0,3.84459]
[1723829589979,2.3588,2601.7,2601.1,3.84451]
[1723829590137,2.3588,2601.7,2601.0,3.84459]
[1723829590340,2.3588,2601.7,2601.2,3.84428]
[1723829590553,2.3588,2601.7,2600.7,3.84511]
[1723829590554,3.84389,2601.6,2600.7,3.84511]
[1723829590754,3.84409,2601.4,2600.8,3.84494]
[1723829590960,3.84389,2601.6,2600.9,3.84471]
[1723829591169,4.487747,2601.6,2600.7,3.84511]
[1723829591390,3.8441,2601.4,2600.6,3.84524]
[1723829591530,3.84467,2601.0,2600.3,3.84563]
[1723829591731,3.8451,2600.8,2600.0,3.84603]
[1723829591981,3.84526,2600.6,2599.9,3.84624]
[1723829592190,3.84526,2600.6,2599.8,3.84636]
[1723829592485,2.3588,2600.5,2600.0,3.84615]
[1723829592793,0.23588,2601.0,2599.4,3.84698]
[1723829592794,3.84479,2601.0,2600.2,3.84574]
[1723829592998,3.84479,2601.0,2599.2,3.84725]
[1723829592999,3.84532,2600.6,2600.0,3.84614]
[1723829593285,4.229852,2600.6,2599.9,3.84625]
[1723829593483,4.229852,2600.6,2598.9,3.84773]
[1723829593484,3.8464,2599.9,2599.1,3.84737]
[1723829593637,0.384532,2600.6,2599.4,3.84703]
[1723829593638,3.84613,2600.1,2599.4,3.84703]
[1723829593840,0.4229852,2600.5,2599.4,3.84703]
[1723829593841,3.84595,2600.2,2599.4,3.84703]
[1723829594171,0.4229852,2600.5,2598.8,3.84789]
[1723829594336,3.84633,2599.9,2599.2,3.8473]
[1723829594535,3.84633,2599.9,2599.0,3.84757]
[1723829594536,3.84671,2599.7,2599.0,3.84752]
[1723829594816,3.84634,2599.9,2599.0,3.84752]
[1723829595077,3.84595,2600.2,2599.4,3.84693]
[1723829595284,3.8456,2600.4,2598.6,4.26613623]
[1723829595436,3.8456,2600.4,2599.2,3.84732]
[1723829595783,3.0,2601.1,2599.2,3.84732]
[1723829595784,2.4395,2601.1,2600.4,3.84556]
[1723829595986,2.4395,2601.1,2600.2,3.84572]
[1723829596195,3.84526,2600.7,2600.0,3.84603]
[1723829596341,2.4395,2600.9,2599.4,3.8469]
[1723829596690,3.84418,2601.4,2599.1,3.84744]
[1723829596691,3.8464,2599.9,2599.1,3.84744]
[1723829596982,7.69216,2600.1,2599.1,3.8474]
[1723829597147,7.69216,2600.1,2598.6,3.84819]
[1723829597148,6.28537,2600.2,2598.7,3.84806]
[1723829597350,3.84633,2599.9,2599.1,3.84738]
[1723829597698,2.4895,2599.4,2598.7,3.84797]
[1723829597854,6.33583,2599.9,2599.3,3.84708]
[1723829598051,2.4895,2599.9,2598.4,0.41801623]
[1723829598255,3.84677,2599.6,2598.9,3.84775]
[1723829598604,2.4895,2599.9,2598.7,3.84804]
[1723829598605,3.84649,2599.8,2599.1,3.84734]
[1723829598813,3.84649,2599.8,2599.2,3.84724]
[1723829598977,3.84649,2599.8,2599.1,3.84734]
[1723829599180,1.018219,2599.8,2598.7,3.84802]
[1723829599517,3.84715,2599.4,2598.7,3.84798]
[1723829599667,3.84715,2599.4,2598.8,3.84783]
[1723829600119,3.84743,2599.2,2598.5,3.84829]
[1723829600278,3.84743,2599.2,2598.4,3.84841]
[1723829600478,3.84743,2599.2,2598.6,3.84814]
[1723829600718,3.84743,2599.2,2597.5,0.41801623]
[1723829600719,3.84766,2599.0,2598.3,3.84856]
[1723829601366,3.84743,2599.2,2598.5,3.84836]
[1723829601803,3.84757,2599.1,2598.5,3.84836]
[1723829602387,3.84757,2599.1,2597.7,5.468]
[1723829602388,2.3775,2599.0,2597.7,3.84944]
[1723829602541,3.8481,2598.7,2598.1,3.84894]
[1723829602697,3.8481,2598.7,2598.0,3.84907]
[1723829603031,3.84851,2598.5,2597.9,3.84915]
[1723829603252,3.84812,2598.7,2598.0,3.84908]
[1723829603439,3.84846,2598.5,2597.9,3.84915]
[1723829603609,4.18544,2598.9,2598.3,3.84866]
[1723829603950,4.18544,2598.9,2597.2,3.8502]
[1723829603951,3.84951,2597.8,2597.2,3.8502]
[1723829604095,3.84917,2598.0,2597.2,3.8502]
[1723829604406,2.3469,2598.1,2597.3,3.85004]
[1723829604609,3.8493,2597.9,2597.3,3.85004]
[1723829604890,3.8493,2597.9,2597.1,3.8504]
[1723829604891,2.3469,2598.1,2597.7,3.84953]
[1723829605013,2.3469,2598.1,2595.9,3.85214]
[1723829605014,2.4092,2598.5,2598.2,3.84875]
[1723829605228,2.4092,2598.5,2598.4,3.84852]
[1723829605542,0.7,2600.5,2597.7,6.18488]
[1723829605543,3.84795,2598.8,2597.7,6.18488]
[1723829605750,2.4092,2599.0,2597.2,0.33424092]
[1723829605751,2.4092,2599.0,2597.4,0.0769727]
[1723829605910,2.4092,2599.0,2598.9,3.84778]
[1723829606130,2.4092,2599.0,2597.6,3.84959]
[1723829606131,6.2569,2599.0,2598.1,3.84891]
[1723829606445,6.25691,2599.0,2598.0,3.84905]
[1723829606601,3.84794,2598.8,2598.2,3.84869]
[1723829606798,3.84833,2598.6,2598.0,3.84901]
[1723829607017,3.84793,2598.8,2598.0,3.849]
[1723829607212,3.84685,2599.6,2598.3,3.84856]
[1723829607213,2.29,2599.5,2598.3,3.84856]
[1723829607451,2.29,2599.5,2599.1,3.84746]
[1723829607654,2.29,2599.5,2598.9,3.84765]
[1723829607829,2.29,2599.5,2599.1,3.84746]
[1723829608151,2.29,2599.5,2599.4,3.84704]
[1723829608347,2.29,2600.2,2599.8,3.84636]
[1723829608644,6.592,2600.7,2598.8,2.4663]
[1723829608645,9.0295,2600.7,2598.8,2.4663]
[1723829608800,2.4375,2600.7,2600.1,3.84589]
[1723829609000,2.4375,2600.7,2600.1,3.84597]
[1723829609237,2.4375,2600.7,2600.6,3.84526]
[1723829609452,2.4375,2601.2,2600.1,3.84593]
[1723829609598,2.4375,2601.2,2600.9,3.84478]
[1723829609945,2.4375,2601.2,2600.0,3.84609]
[1723829609946,2.4375,2601.2,2600.4,3.84543]
[1723829610124,2.4375,2601.2,2600.9,3.84478]
[1723829610330,2.3697,2601.7,2601.2,3.84425]
[1723829610648,2.3697,2601.7,2601.2,3.84436]
[1723829610811,2.3697,2601.7,2601.4,3.84406]
[1723829611012,2.3697,2601.7,2601.0,3.84464]
[1723829611214,3.84386,2601.6,2600.7,3.8451]
[1723829611448,3.84437,2601.2,2600.5,3.84537]
[1723829611957,3.84437,2601.2,2600.3,3.84567]
[1723829612252,3.84328,2602.0,2599.4,35.0]
[1723829612253,3.84573,2600.3,2599.4,3.8469]
[1723829612409,3.84573,2600.3,2598.7,2.2708]
[1723829612410,3.84603,2600.1,2599.3,3.84715]
[1723829612732,3.84603,2600.1,2598.3,3.84859]
[1723829612733,2.3775,2599.7,2599.2,3.84726]
[1723829612928,6.22416,2599.7,2599.0,3.84761]
[1723829613132,6.22416,2599.7,2598.8,3.84788]
[1723829613133,6.22414,2599.7,2598.8,3.84788]
[1723829613330,3.84704,2599.5,2598.9,3.84773]
[1723829613521,3.84702,2599.5,2598.8,3.84788]
[1723829613717,2.3775,2599.7,2598.1,2.2708]
[1723829613934,2.3775,2599.7,2599.1,3.84746]
[1723829614144,6.22421,2599.7,2598.9,3.84764]
[1723829614444,3.84699,2599.5,2598.7,3.84801]
[1723829614748,3.384556,2599.7,2598.8,0.07694767]
[1723829614958,2.3775,2599.7,2599.2,3.84728]
[1723829615251,3.0,2600.7,2599.0,3.84757]
[1723829615252,3.84645,2599.8,2599.0,3.84757]
[1723829615457,3.0,2600.7,2599.3,3.84718]
[1723829615458,0.622381,2599.7,2599.3,3.84718]
[1723829615658,6.24172,2600.4,2599.7,3.84647]
[1723829615804,3.84616,2600.0,2599.4,3.84694]
[1723829616202,3.84646,2599.8,2599.2,3.84731]
[1723829616449,3.84646,2599.8,2599.0,3.84752]
[1723829616450,3.84669,2599.7,2599.0,3.84752]
[1723829616621,3.84694,2599.5,2598.8,3.84788]
[1723829616802,2.3961,2599.6,2598.4,3.84846]
[1723829617034,2.3961,2599.6,2597.6,2.81195542]
[1723829617035,3.84764,2599.0,2598.2,3.84872]
[1723829617198,3.84737,2599.2,2598.4,3.84848]
[1723829617403,3.84711,2599.4,2597.9,0.5080721]
[1723829617657,3.84743,2599.2,2598.5,3.84833]
[1723829617851,3.8478,2598.9,2598.3,3.84857]
[1723829618101,2.3961,2598.8,2597.6,3.84968]
[1723829618598,3.84818,2598.7,2598.1,3.84892]
[1723829618809,3.84818,2598.7,2597.9,3.84916]
[1723829618954,3.84832,2598.6,2597.9,3.84916]
[1723829619148,3.84807,2598.7,2598.0,3.84906]
[1723829619405,3.84846,2598.5,2597.6,3.84964]
[1723829619602,3.84846,2598.5,2597.2,3.85027]
[1723829619603,1.00926,2598.6,2598.1,3.84885]
[1723829619753,10.44012,2598.7,2597.9,3.8492]
[1723829619754,3.84842,2598.5,2597.9,3.8492]
[1723829619960,14.2883,2598.7,2598.0,3.8491]
[1723829620284,3.84842,2598.5,2597.9,3.8492]
[1723829620508,3.84842,2598.5,2597.8,3.84939]
[1723829620661,1.5572162,2598.5,2597.7,3.84944]
[1723829620857,1.5572162,2598.5,2597.3,3.85009]
[1723829621089,6.592,2598.7,2597.3,3.85009]
[1723829621090,3.84935,2597.9,2597.3,3.85009]
[1723829621291,3.84935,2597.9,2597.2,3.85026]
[1723829621492,2.3961,2598.0,2597.4,3.8499]
[1723829621760,3.8494,2597.9,2597.2,3.8502]
[1723829622564,3.84956,2597.7,2597.1,3.8503]
[1723829622770,4.36608505,2597.9,2597.1,3.8503]
[1723829623020,2.3961,2598.0,2597.5,3.84985]
[1723829623163,2.3961,2598.0,2596.0,2.4097]
[1723829623164,3.8481,2598.7,2597.9,3.84916]
[1723829623165,6.24457,2598.5,2597.9,3.84916]
[1723829623467,6.24459,2598.5,2597.8,3.84938]
[1723829623671,7.913063,2598.5,2597.8,3.84938]
[1723829623855,2.3961,2598.5,2597.8,3.84929]
[1723829624050,2.3961,2598.5,2597.4,3.84995]
[1723829624051,3.84907,2598.1,2597.4,3.84988]
[1723829624336,3.84907,2598.1,2597.2,3.8502]
[1723829624337,3.84938,2597.9,2597.2,3.8502]
[1723829624474,3.84937,2597.9,2597.2,3.8502]
[1723829624665,4.233947,2598.1,2597.2,3.8502]
[1723829624868,3.84904,2598.1,2597.2,3.8502]
[1723829625069,3.84955,2597.7,2597.0,3.85048]
[1723829625324,2.3344,2597.6,2597.0,3.85048]
[1723829625656,2.3344,2597.6,2597.3,3.85014]
[1723829625859,3.84901,2598.1,2597.8,3.84939]
[1723829625860,2.3344,2598.1,2597.8,3.84939]
[1723829626105,3.8492,2598.0,2597.2,3.85025]
[1723829626404,3.8492,2598.0,2597.0,3.0]
[1723829626405,2.3344,2598.1,2597.0,3.0]
[1723829626599,2.3344,2598.1,2596.7,3.0]
[1723829626773,2.3344,2598.1,2597.9,3.84926]
[1723829627268,6.592,2598.8,2597.3,3.85014]
[1723829627269,10.43998,2598.8,2597.3,3.85014]
[1723829627485,3.84825,2598.6,2597.8,3.84932]
[1723829627669,3.84825,2598.6,2597.6,3.84959]
[1723829627670,3.84861,2598.4,2597.6,3.84959]
[1723829627869,3.84827,2598.6,2597.5,3.84981]
[1723829628196,3.84827,2598.6,2597.7,3.84943]
[1723829628197,3.84861,2598.4,2597.7,3.84943]
[1723829628505,6.592,2598.8,2597.5,3.84976]
[1723829628707,7.69758,2598.3,2597.6,3.84961]
[1723829628919,3.84844,2598.5,2597.6,3.84961]
[1723829629088,0.6592,2598.7,2597.6,3.8496]
[1723829629409,3.8494,2597.9,2597.2,3.85019]
[1723829629616,0.72512,2598.6,2596.6,2.4987773]
[1723829629816,4.5734,2598.6,2597.3,3.85006]
[1723829629963,4.5734,2598.6,2596.6,2.4987773]
[1723829629964,3.84943,2597.8,2597.1,3.85033]
[1723829630170,3.84951,2597.8,2597.1,3.85038]
[1723829630565,3.84951,2597.8,2596.6,2.4987773]
[1723829630566,3.84972,2597.6,2596.9,3.85063]
[1723829630767,3.84972,2597.6,2597.0,3.85058]
[1723829631003,3.8504,2597.2,2596.6,0.0867773]
[1723829631224,3.85032,2597.2,2596.6,0.0867773]
[1723829631507,7.70074,2597.2,2596.6,0.0867773]
[1723829631709,3.85032,2597.2,2596.6,3.9379573]
[1723829631914,3.85032,2597.2,2596.7,3.85101]
[1723829632069,3.85032,2597.2,2596.6,0.0867773]
[1723829632271,2.443,2597.3,2596.7,3.85094]
[1723829632581,2.443,2597.3,2596.8,3.85089]
[1723829632736,3.85033,2597.2,2596.6,0.0867773]
[1723829633249,2.443,2597.3,2596.6,0.0867773]
[1723829633736,3.85098,2596.8,2596.6,0.0867773]
[1723829634135,12.88519,2597.3,2596.7,3.85103]
[1723829634136,12.88523,2597.3,2596.7,3.85103]
[1723829634444,3.85067,2597.0,2596.6,0.0867773]
[1723829634591,3.85084,2596.9,2596.6,0.0867773]
[1723829634788,7.70208,2596.7,2596.6,0.0867773]
[1723829635080,3.232308,2596.7,2596.6,0.0867773]
[1723829635402,3.232308,2596.7,2594.9,0.40218011]
[1723829635403,3.85277,2595.6,2594.9,0.40218011]
[1723829635737,0.6713,2596.0,2595.2,3.85314]
[1723829635738,4.52348,2596.0,2595.2,3.85314]
[1723829635958,13.44352,2596.4,2595.6,3.85252]
[1723829636091,0.6713,2596.6,2595.8,3.85226]
[1723829636294,0.6713,2596.6,2595.1,2.3466]
[1723829636295,4.5226,2596.6,2595.9,3.8522]
[1723829636521,0.6713,2596.6,2596.0,3.85207]
[1723829636706,0.6713,2596.6,2595.4,3.92987373]
[1723829636707,4.52262,2596.6,2595.8,3.85228]
[1723829636901,0.6713,2596.6,2596.1,3.85182]
[1723829637254,6.592,2596.4,2595.5,3.85274]
[1723829637541,3.85176,2596.3,2595.3,3.85302]
[1723829637761,3.85193,2596.1,2595.3,3.85301]
[1723829637913,3.85176,2596.3,2595.3,3.85301]
[1723829637914,3.85183,2596.2,2595.5,3.8528]
[1723829638098,3.85175,2596.3,2595.5,3.85269]
[1723829638301,0.6713,2596.6,2596.0,3.85207]
[1723829638557,3.85015,2597.4,2596.4,3.85145]
[1723829638558,2.4405,2597.1,2596.4,3.85145]
[1723829638727,0.72512,2598.6,2597.0,3.85059]
[1723829638728,2.4405,2597.5,2597.0,3.85059]
[1723829639021,3.8496,2597.7,2596.9,3.85073]
[1723829639314,3.85027,2597.3,2596.3,3.85155]
[1723829639541,3.85021,2597.3,2596.2,6.24352]
[1723829639700,3.85021,2597.3,2596.5,3.85131]
[1723829639902,10.44205,2597.4,2596.6,3.85108]
[1723829640146,10.44205,2597.4,2596.4,3.85144]
[1723829640368,10.44205,2597.4,2596.2,2.3918]
[1723829640369,2.4405,2597.9,2597.3,3.85015]
[1723829640519,2.4405,2597.9,2596.5,0.55]
[1723829640520,2.4405,2597.9,2597.1,3.85041]
[1723829640718,6.2899,2597.9,2597.1,3.85041]
[1723829641030,3.85061,2597.0,2596.2,2.3918]
[1723829641235,3.85061,2597.0,2596.1,6.85182]
[1723829641236,3.85095,2596.8,2596.1,6.85182]
[1723829641744,3.85061,2597.0,2596.1,3.85182]
[1723829641745,3.85075,2596.9,2596.1,3.85182]
[1723829641952,3.85092,2596.8,2595.9,3.85217]
[1723829642114,3.85092,2596.8,2595.5,0.07702928]
[1723829642313,3.85106,2596.7,2596.1,3.85183]
[1723829642517,3.85092,2596.8,2595.9,3.85219]
[1723829642518,3.8512,2596.6,2595.9,3.85219]
[1723829642930,3.8512,2596.6,2595.7,3.85245]
[1723829642931,3.85158,2596.4,2595.7,3.85245]
[1723829643230,3.85158,2596.4,2594.8,3.8538]
[1723829643231,4.479881,2596.9,2596.2,3.85175]
[1723829643432,3.85128,2596.6,2595.8,7.70461]
[1723829643632,10.44266,2597.0,2595.0,2.4942]
[1723829643633,5.139103,2596.9,2595.6,3.85258]
[1723829643829,3.85147,2596.5,2595.7,3.85252]
[1723829644089,3.8516,2596.4,2595.7,3.85252]
[1723829644247,2.426,2596.3,2595.6,3.85265]
[1723829644457,2.426,2596.3,2595.5,3.85269]
[1723829644978,3.85178,2596.2,2595.5,3.85269]
[1723829645191,3.85193,2596.1,2595.5,3.85269]
[1723829645333,6.27767,2596.3,2595.5,3.85269]
[1723829645684,3.85179,2596.2,2595.5,3.85269]
[1723829646486,3.85217,2596.0,2595.3,7.70604]
[1723829646693,3.85217,2596.0,2595.1,3.85333]
[1723829646874,6.592,2596.0,2594.9,3.85366]
[1723829647072,2.426,2595.7,2595.2,3.85315]
[1723829647240,2.426,2595.7,2595.3,3.85311]
[1723829647441,2.426,2595.7,2594.3,2.8813]
[1723829647442,3.85279,2595.6,2594.8,3.85377]
[1723829647655,3.85292,2595.5,2594.8,3.85377]
[1723829647861,3.85292,2595.5,2594.6,3.85411]
[1723829647862,2.426,2595.7,2594.6,3.85406]
[1723829648098,3.8535,2595.1,2594.4,3.85437]
[1723829648295,3.8535,2595.1,2594.4,7.70873]
[1723829648553,10.44482,2595.5,2594.8,3.85377]
[1723829648758,10.44482,2595.5,2594.6,3.85405]
[1723829648759,3.85312,2595.3,2594.6,3.85405]
[1723829648971,3.8535,2595.1,2594.4,3.85434]
[1723829649224,7.70702,2595.1,2594.4,3.85434]
[1723829649431,3.8535,2595.1,2594.3,3.85457]
[1723829649746,3.85319,2595.3,2594.1,3.85486]
[1723829649932,3.85319,2595.3,2594.3,3.85459]
[1723829650247,7.879082,2595.5,2594.1,7.70966]
[1723829650248,3.85372,2594.9,2594.1,7.70966]
[1723829650372,3.85388,2594.8,2593.9,3.8551]
[1723829650573,2.426,2595.0,2594.3,3.85448]
[1723829650802,2.426,2595.4,2594.7,3.85391]
[1723829651022,2.426,2595.4,2594.8,3.85377]
[1723829651521,3.85259,2595.7,2594.9,3.85369]
[1723829651830,2.426,2595.8,2595.3,3.85311]
[1723829651977,7.70637,2595.3,2594.6,3.85407]
[1723829652174,0.2426,2595.7,2594.1,6.85476]
[1723829652370,7.70754,2594.9,2594.2,3.85464]
[1723829652627,7.70754,2594.9,2594.1,3.85476]
[1723829652628,3.85386,2594.8,2594.1,7.70957]
[1723829652822,3.85363,2595.0,2594.1,3.85476]
[1723829652988,3.85395,2594.8,2594.1,3.85476]
[1723829653172,3.85394,2594.8,2594.1,0.38391]
[1723829653380,3.85394,2594.8,2594.0,3.9812992]
[1723829653381,3.85412,2594.7,2594.0,3.9812992]
[1723829653616,3.85412,2594.7,2594.0,0.1262792]
[1723829653919,3.85412,2594.7,2594.0,3.9811892]
[1723829654090,3.85412,2594.7,2594.0,0.1262792]
[1723829654091,3.85466,2594.3,2594.0,0.1262792]
[1723829654295,3.85432,2594.5,2594.0,0.1262792]
[1723829654636,3.85408,2594.7,2594.0,0.1262792]
[1723829654792,3.85408,2594.7,2594.1,3.85481]
[1723829654988,3.8538,2594.9,2594.0,2.3905792]
[1723829655201,3.85302,2595.4,2594.8,3.85377]
[1723829655552,3.85302,2595.4,2594.7,3.85399]
[1723829655689,3.85302,2595.4,2594.7,3.85392]
[1723829655885,3.85276,2595.6,2594.7,3.85392]
[1723829656235,3.85298,2595.4,2594.7,7.70783]
[1723829656725,3.85279,2595.6,2594.6,3.85412]
[1723829656935,3.85279,2595.6,2595.0,3.85353]
[1723829657386,2.4074,2595.7,2594.6,7.70807]
[1723829657387,3.85311,2595.4,2594.6,7.70807]
[1723829657584,3.85349,2595.1,2594.2,6.85468]
[1723829657820,7.70704,2595.1,2594.4,3.85437]
[1723829658015,7.70644,2595.3,2594.4,3.85437]
[1723829658341,3.85305,2595.4,2594.8,3.85375]
[1723829658706,3.85356,2595.0,2594.4,3.85439]
[1723829659124,0.770597,2595.3,2594.0,2.3905792]
[1723829659125,3.85416,2594.6,2594.0,0.1262792]
[1723829659735,6.26084,2595.1,2594.0,0.1262792]
[1723829659736,3.85364,2595.0,2594.0,0.1262792]
[1723829659918,3.85387,2594.8,2594.0,3.9812292]
[1723829660235,3.85442,2594.5,2594.0,0.1262792]
[1723829660535,6.83274,2595.0,2594.0,0.1262792]
[1723829660691,3.85397,2594.8,2594.0,3.9812592]
[1723829660896,3.85394,2594.8,2594.0,0.1262792]
[1723829661205,3.85394,2594.8,2594.0,3.9812492]
[1723829661206,3.85423,2594.6,2594.0,3.9812492]
[1723829661407,3.85423,2594.6,2594.0,0.1262792]
[1723829661620,0.650174,2594.9,2594.0,0.1262792]
[1723829661828,3.85387,2594.8,2594.2,3.85473]
[1723829662142,3.85387,2594.8,2594.2,3.85467]
[1723829662542,3.85409,2594.7,2594.0,3.9812292]
[1723829662728,3.8544,2594.5,2594.0,0.1262792]
[1723829663036,3.85453,2594.4,2594.0,0.1262792]
[1723829663193,3.85443,2594.5,2594.0,0.1262792]
[1723829663194,3.85439,2594.5,2594.0,0.1262792]
[1723829663395,3.85461,2594.3,2594.0,0.1262792]
[1723829663637,6.90498981,2594.3,2594.0,0.1262792]
[1723829663803,3.8549,2594.1,2594.0,0.1262792]
[1723829664002,7.7098,2594.1,2594.0,0.1262792]
[1723829664414,3.85475,2594.2,2594.0,0.1262792]
[1723829664596,3.85552,2593.7,2592.7,0.40314691]
[1723829664798,6.592,2593.7,2592.7,3.8569]
[1723829665049,3.85588,2593.5,2592.7,3.85687]
[1723829665253,6.592,2593.7,2592.3,2.2586]
[1723829665254,6.592,2593.7,2592.3,2.33572241]
[1723829665457,3.85529,2593.9,2593.1,3.85627]
[1723829666095,3.8556,2593.7,2592.3,2.2586]
[1723829666299,2.2698,2594.1,2592.6,3.85707]
[1723829666300,1.271671,2594.0,2592.6,3.85707]
[1723829666607,3.85564,2593.6,2592.3,6.11608]
[1723829666824,5.126751,2594.0,2593.4,3.85592]
[1723829667026,2.2698,2594.1,2592.3,6.11608]
[1723829667027,3.85551,2593.7,2593.0,3.85642]
[1723829667193,3.85551,2593.7,2592.5,3.85718]
[1723829667194,1.3988551,2594.0,2592.3,2.2586]
[1723829667404,1.3988551,2594.0,2593.1,3.85635]
[1723829667405,3.85552,2593.7,2593.1,3.85635]
[1723829667597,3.85552,2593.7,2592.9,3.85655]
[1723829668100,3.85505,2594.0,2592.8,3.85675]
[1723829668399,9.0143,2594.2,2593.0,2.4374]
[1723829668400,2.4223,2594.2,2593.0,2.4374]
[1723829668765,3.85511,2594.0,2592.8,3.85674]
[1723829668898,3.85576,2593.6,2592.7,7.71381]
[1723829669209,3.85576,2593.6,2592.6,5.4374]
[1723829669210,3.85542,2593.8,2592.6,5.4374]
[1723829669395,3.85544,2593.8,2593.1,3.85627]
[1723829670212,0.385544,2593.8,2592.9,3.85664]
[1723829670411,3.85528,2593.9,2593.1,3.85625]
[1723829670615,3.85497,2594.1,2592.6,6.29446]
[1723829670835,3.85497,2594.1,2593.4,3.85587]
[1723829671035,3.85497,2594.1,2593.4,7.71171]
[1723829671236,2.4223,2594.2,2593.3,3.856]
[1723829671400,3.85437,2594.5,2593.8,3.85521]
[1723829671836,3.85461,2594.3,2593.6,3.85551]
[1723829672019,3.85461,2594.3,2593.0,3.0]
[1723829672020,3.85453,2594.4,2593.5,3.85576]
[1723829672215,3.85453,2594.4,2593.1,3.85624]
[1723829672216,3.85505,2594.0,2593.1,3.85624]
[1723829672557,3.85505,2594.0,2592.9,3.85665]
[1723829672558,3.85573,2593.6,2592.9,3.85665]
[1723829672705,3.85545,2593.8,2593.1,3.85633]
[1723829673059,3.85537,2593.8,2593.1,3.85626]
[1723829673361,3.85537,2593.8,2592.5,2.3126]
[1723829673362,3.85573,2593.6,2592.7,3.85689]
[1723829673847,3.85573,2593.6,2592.9,3.85665]
[1723829674060,4.3029297,2593.6,2592.9,3.85665]
[1723829674269,8.1586697,2593.6,2592.9,3.8566]
[1723829674469,2.3073,2593.9,2593.3,3.85608]
[1723829674635,3.85544,2593.8,2593.1,3.85634]
[1723829674953,3.85544,2593.8,2592.5,2.3126]
[1723829674954,3.85565,2593.6,2592.9,3.85655]
[1723829675169,3.85609,2593.3,2592.6,7.71406]
[1723829675318,3.85609,2593.3,2592.6,7.71404]
[1723829675512,3.85609,2593.3,2592.7,3.85693]
[1723829675856,8.482878,2593.5,2592.8,3.85673]
[1723829676013,2.4966,2593.2,2592.7,3.85694]
[1723829676214,3.85692,2592.8,2592.1,3.85785]
[1723829676525,3.85677,2592.9,2592.1,3.85785]
[1723829676753,3.85713,2592.6,2591.9,7.7162]
[1723829676992,3.85678,2592.9,2592.2,3.85759]
[1723829677254,3.85678,2592.9,2591.5,3.85872]
[1723829677255,3.85702,2592.7,2592.1,3.85786]
[1723829677873,7.71413,2592.7,2592.0,3.85793]
[1723829678107,7.71413,2592.7,2591.5,3.85872]